fUST/lending_fUST_20250604
["ID","MTS","AMOUNT","RATE_DAILY","PERIOD"]
[364214274,1749042643350,-1345.56,0.0001726,2]
[364214276,1749042643360,-163.52,0.0001726,2]
[364214279,1749042643370,-440.0,0.0001726,2]
[364214281,1749042643379,-500.0,0.00017347,2]
[364214283,1749042643389,-500.0,0.00017347,2]
[364214285,1749042643399,-500.0,0.00017354,2]
[364214287,1749042643408,-502.93988225,0.00017423,2]
[364214289,1749042643417,-502.88093826,0.00017423,2]
[364214291,1749042643427,-500.0,0.00017423,2]
[364214293,1749042643436,-500.0,0.00017423,2]
[364214295,1749042643445,-168.72830382,0.00017423,2]
[364214297,1749042643456,-500.50538099,0.00017433,2]
[364214299,1749042643465,-152.89886442,0.00017447,2]
[364214301,1749042643475,-500.57114652,0.00017461,2]
[364214302,1749042643484,-500.0,0.00017461,2]
[364214304,1749042643494,-500.0,0.00017507,2]
[364214306,1749042643504,-500.0,0.00017507,2]
[364214308,1749042643513,-500.0,0.0001752,2]
[364214310,1749042643523,-500.0,0.0001752,2]
[364214312,1749042643532,-490.32643948,0.0001752,2]
[364214314,1749042643542,-500.0,0.0001752,2]
[364214317,1749042643552,-501.37251406,0.0001752,2]
[364214319,1749042643561,-440.0,0.00017534,2]
[364214321,1749042643570,-400.0,0.00017534,2]
[364214323,1749042643579,-440.0,0.00017534,2]
[364214325,1749042643589,-627.42,0.00017534,2]
[364214327,1749042643598,-576.08,0.00017534,2]
[364214329,1749042643607,-440.0,0.00017534,2]
[364214331,1749042643616,-440.0,0.00017534,2]
[364214333,1749042643626,-440.0,0.00017534,2]
[364214335,1749042643636,-440.0,0.00017534,2]
[364214337,1749042643645,-477.39,0.00017534,2]
[364214339,1749042643654,-981.07,0.00017534,2]
[364214341,1749042643663,-440.0,0.00017534,2]
[364214343,1749042643672,-440.0,0.00017534,2]
[364214345,1749042643681,-420.0,0.00017534,2]
[364214347,1749042643690,-2889.7,0.00017534,2]
[364214349,1749042643699,-2919.59,0.00017534,2]
[364214351,1749042643708,-876.89,0.00017534,2]
[364214353,1749042643717,-380.0,0.00017534,2]
[364214355,1749042643726,-1743.65,0.00017534,2]
[364214357,1749042643735,-3684.79,0.00017534,2]
[364214358,1749042643744,-440.0,0.00017534,2]
[364214360,1749042643754,-3714.63,0.00017534,2]
[364214362,1749042643763,-2209.5,0.00017534,2]
[364214364,1749042643772,-742.49,0.00017534,2]
[364214366,1749042643782,-1259.57,0.00017534,2]
[364214368,1749042643791,-933.22,0.00017534,2]
[364214370,1749042643800,-573.62,0.00017534,2]
[364214372,1749042643810,-6296.12,0.00017534,2]
[364214374,1749042643819,-440.0,0.00017534,2]
[364214376,1749042643828,-440.0,0.00017534,2]
[364214378,1749042643838,-440.0,0.00017534,2]
[364214380,1749042643847,-519.9,0.00017534,2]
[364214382,1749042643857,-926.98,0.00017534,2]
[364214384,1749042643866,-1503.46,0.00017534,2]
[364214386,1749042643876,-843.76,0.00017534,2]
[364214388,1749042643885,-440.0,0.00017534,2]
[364214390,1749042643895,-440.0,0.00017534,2]
[364214392,1749042643904,-1022.64,0.00017534,2]
[364214394,1749042643914,-956.94,0.00017534,2]
[364214396,1749042643924,-1396.41,0.00017534,2]
[364214399,1749042643934,-2933.99,0.00017534,2]
[364214401,1749042643944,-440.0,0.00017534,2]
[364214403,1749042643953,-4792.12,0.00017534,2]
[364214404,1749042643963,-440.0,0.00017534,2]
[364214407,1749042643973,-440.0,0.00017534,2]
[364214409,1749042643983,-440.0,0.00017534,2]
[364214410,1749042643997,-1345.56,0.00017534,2]
[364214412,1749042644009,-440.0,0.00017534,2]
[364214415,1749042644018,-4561.37926216,0.000176,2]
[364214416,1749042644028,-4561.37926191,0.000176,2]
[364214419,1749042644039,-4561.37926191,0.000176,2]
[364214421,1749042644049,-901.61204491,0.00017613,2]
[364214422,1749042644059,-4561.37926191,0.00017728,2]
[364214425,1749042644072,-500.95223071,0.00017729,2]
[364214427,1749042644082,-440.0,0.00017808,2]
[364214429,1749042644092,-440.0,0.00017808,2]
[364214431,1749042644102,-627.42,0.00017808,2]
[364214433,1749042644112,-440.0,0.00017808,2]
[364214435,1749042644122,-440.0,0.00017808,2]
[364214437,1749042644132,-395.75,0.00017808,2]
[364214439,1749042644142,-420.0,0.00017808,2]
[364214441,1749042644152,-477.39,0.00017808,2]
[364214443,1749042644163,-981.07,0.00017808,2]
[364214445,1749042644173,-440.0,0.00017808,2]
[364214447,1749042644183,-441.33810003,0.00017808,2]
[364214449,1749042644194,-2889.7,0.00017808,2]
[364214451,1749042644203,-2919.59,0.00017808,2]
[364214453,1749042644214,-876.89,0.00017808,2]
[364214455,1749042644223,-1743.65,0.00017808,2]
[364214457,1749042644233,-3684.79,0.00017808,2]
[364214459,1749042644243,-440.0,0.00017808,2]
[364214461,1749042644255,-3714.63,0.00017808,2]
[364214463,1749042644268,-2209.5,0.00017808,2]
[364214466,1749042644278,-742.49,0.00017808,2]
[364214468,1749042644289,-1259.57,0.00017808,2]
[364214470,1749042644299,-933.22,0.00017808,2]
[364214472,1749042644308,-6296.12,0.00017808,2]
[364214474,1749042644318,-440.0,0.00017808,2]
[364214476,1749042644328,-185.06,0.00017808,2]
[364214478,1749042644339,-440.0,0.00017808,2]
[364214480,1749042644349,-519.9,0.00017808,2]
[364214482,1749042644359,-926.98,0.00017808,2]
[364214484,1749042644369,-1503.46,0.00017808,2]
[364214486,1749042644379,-843.76,0.00017808,2]
[364214488,1749042644389,-360.77169749,0.00017808,2]
[364214490,1749042644398,-440.0,0.00017808,2]
[364214492,1749042644408,-1022.64,0.00017808,2]
[364214494,1749042644417,-956.94,0.00017808,2]
[364214496,1749042644428,-1396.41,0.00017808,2]
[364214498,1749042644438,-2933.99,0.00017808,2]
[364214500,1749042644447,-440.0,0.00017808,2]
[364214502,1749042644457,-4792.12,0.00017808,2]
[364214504,1749042644467,-440.0,0.00017808,2]
[364214506,1749042644477,-440.0,0.00017808,2]
[364214508,1749042644487,-527.67101958,0.00017808,2]
[364214510,1749042644497,-1345.56,0.00017808,2]
[364214512,1749042644508,-440.0,0.00017808,2]
[364214514,1749042644519,-626.3484576,0.00017818,2]
[364214516,1749042644529,-532.98731685,0.00017869,2]
[364214518,1749042644540,-500.0,0.00017869,2]
[364214520,1749042644549,-550.41727479,0.00017869,2]
[364214522,1749042644559,-1000.0,0.00017895,2]
[364214524,1749042644569,-740.99975423,0.00017898,2]
[364214526,1749042644579,-1000.0,0.00017902,2]
[364214528,1749042644589,-420.0,0.00017963,2]
[364214530,1749042644599,-420.0,0.00017963,2]
[364214532,1749042644608,-1000.0,0.00017971,2]
[364214534,1749042644618,-1000.0,0.00017971,2]
[364214536,1749042644627,-4561.37926191,0.00018003,2]
[364214538,1749042644637,-699.43355449,0.00018047,2]
[364214540,1749042644647,-1680.0,0.00018053,2]
[364214542,1749042644657,-1000.0,0.00018055,2]
[364214544,1749042644666,-1309.1,0.00018072,3]
[364214546,1749042644676,-654.54,0.00018072,3]
[364214548,1749042644687,-327.28,0.00018072,3]
[364214550,1749042644697,-155.0,0.00018081,2]
[364214552,1749042644706,-440.0,0.00018082,2]
[364214554,1749042644716,-440.0,0.00018082,2]
[364214556,1749042644726,-627.42,0.00018082,2]
[364214558,1749042644737,-440.0,0.00018082,2]
[364214560,1749042644746,-440.0,0.00018082,2]
[364214562,1749042644757,-477.39,0.00018082,2]
[364214564,1749042644768,-981.07,0.00018082,2]
[364214566,1749042644778,-440.0,0.00018082,2]
[364214568,1749042644790,-2889.7,0.00018082,2]
[364214569,1749042644800,-2919.59,0.00018082,2]
[364214570,1749042644810,-876.89,0.00018082,2]
[364214571,1749042644820,-1743.65,0.00018082,2]
[364214572,1749042644830,-3684.79,0.00018082,2]
[364214573,1749042644839,-440.0,0.00018082,2]
[364214574,1749042644850,-3714.63,0.00018082,2]
[364214575,1749042644859,-2209.5,0.00018082,2]
[364214576,1749042644869,-742.49,0.00018082,2]
[364214577,1749042644879,-1259.57,0.00018082,2]
[364214578,1749042644889,-933.22,0.00018082,2]
[364214579,1749042644899,-6296.12,0.00018082,2]
[364214580,1749042644909,-440.0,0.00018082,2]
[364214581,1749042644919,-440.0,0.00018082,2]
[364214582,1749042644930,-519.9,0.00018082,2]
[364214583,1749042644940,-926.98,0.00018082,2]
[364214584,1749042644950,-1503.46,0.00018082,2]
[364214585,1749042644960,-843.76,0.00018082,2]
[364214586,1749042644970,-440.0,0.00018082,2]
[364214587,1749042644981,-1022.64,0.00018082,2]
[364214588,1749042644991,-956.94,0.00018082,2]
[364214589,1749042645005,-1396.41,0.00018082,2]
[364214590,1749042645015,-2933.99,0.00018082,2]
[364214591,1749042645135,-440.0,0.00018082,2]
[364214592,1749042645145,-4792.12,0.00018082,2]
[364214593,1749042645155,-440.0,0.00018082,2]
[364214594,1749042645165,-440.0,0.00018082,2]
[364214595,1749042645174,-1345.56,0.00018082,2]
[364214596,1749042645184,-440.0,0.00018082,2]
[364214597,1749042645194,-4561.37926191,0.00018279,2]
[364214598,1749042645203,-370.03079413,0.00018356,2]
[364214599,1749042645213,-440.0,0.00018356,2]
[364214600,1749042645222,-627.42,0.00018356,2]
[364214601,1749042645232,-440.0,0.00018356,2]
[364214602,1749042645242,-440.0,0.00018356,2]
[364214603,1749042645252,-477.39,0.00018356,2]
[364214604,1749042645262,-981.07,0.00018356,2]
[364214605,1749042645272,-440.0,0.00018356,2]
[364214606,1749042645282,-2889.7,0.00018356,2]
[364214607,1749042645292,-2919.59,0.00018356,2]
[364214608,1749042645301,-876.89,0.00018356,2]
[364214609,1749042645311,-1743.65,0.00018356,2]
[364214610,1749042645321,-3684.79,0.00018356,2]
[364214611,1749042645333,-440.0,0.00018356,2]
[364214612,1749042645343,-3714.63,0.00018356,2]
[364214613,1749042645352,-2209.5,0.00018356,2]
[364214614,1749042645361,-742.49,0.00018356,2]
[364214615,1749042645370,-1259.57,0.00018356,2]
[364214616,1749042645380,-933.22,0.00018356,2]
[364214617,1749042645388,-6296.12,0.00018356,2]
[364214618,1749042645398,-440.0,0.00018356,2]
[364214619,1749042645407,-440.0,0.00018356,2]
[364214620,1749042645417,-519.9,0.00018356,2]
[364214621,1749042645426,-926.98,0.00018356,2]
[364214622,1749042645435,-1503.46,0.00018356,2]
[364214623,1749042645445,-843.76,0.00018356,2]
[364214624,1749042645453,-440.0,0.00018356,2]
[364214625,1749042645463,-1022.64,0.00018356,2]
[364214627,1749042645472,-956.94,0.00018356,2]
[364214629,1749042645482,-1396.41,0.00018356,2]
[364214631,1749042645491,-2933.99,0.00018356,2]
[364214633,1749042645504,-440.0,0.00018356,2]
[364214636,1749042645514,-4792.12,0.00018356,2]
[364214638,1749042645524,-440.0,0.00018356,2]
[364214640,1749042645533,-440.0,0.00018356,2]
[364214642,1749042645540,-1345.56,0.00018356,2]
[364214644,1749042645550,-440.0,0.00018356,2]
[364214646,1749042645559,-634.74202934,0.00018417,2]
[364214648,1749042645569,-500.0,0.00018443,2]
[364214650,1749042645578,-504.89682241,0.0001845,2]
[364214652,1749042645588,-151.0,0.000185,2]
[364214654,1749042645598,-1500.0,0.00018519,2]
[364214656,1749042645608,-500.0,0.00018519,2]
[364214658,1749042645618,-740.99975423,0.0001854,2]
[364214660,1749042645628,-4561.37926191,0.00018555,2]
[364214662,1749042645637,-152.89886442,0.00018557,2]
[364214665,1749042645647,-151.0,0.000186,2]
[364214666,1749042645657,-440.0,0.0001863,2]
[364214669,1749042645667,-627.42,0.0001863,2]
[364214670,1749042645677,-440.0,0.0001863,2]
[364214673,1749042645687,-440.0,0.0001863,2]
[364214675,1749042645697,-477.39,0.0001863,2]
[364214677,1749042645707,-981.07,0.0001863,2]
[364214679,1749042645717,-307.69989397,0.0001863,2]
[364214681,1749042645727,-2889.7,0.0001863,2]
[364214683,1749042645736,-2919.59,0.0001863,2]
[364214685,1749042645746,-876.89,0.0001863,2]
[364214687,1749042645757,-1743.65,0.0001863,2]
[364214689,1749042645767,-3684.79,0.0001863,2]
[364214691,1749042645777,-440.0,0.0001863,2]
[364214693,1749042645787,-3714.63,0.0001863,2]
[364214695,1749042645796,-2209.5,0.0001863,2]
[364214697,1749042645806,-742.49,0.0001863,2]
[364214699,1749042645815,-1259.57,0.0001863,2]
[364214701,1749042645825,-933.22,0.0001863,2]
[364214703,1749042645836,-6296.12,0.0001863,2]
[364214705,1749042645846,-440.0,0.0001863,2]
[364214707,1749042645855,-429.74240688,0.0001863,2]
[364214710,1749042645878,-519.9,0.0001863,2]
[364214712,1749042645890,-926.98,0.0001863,2]
[364214715,1749042645901,-1503.46,0.0001863,2]
[364214717,1749042645913,-843.76,0.0001863,2]
[364214719,1749042645924,-440.0,0.0001863,2]
[364214721,1749042645935,-1022.64,0.0001863,2]
[364214723,1749042645946,-956.94,0.0001863,2]
[364214725,1749042645957,-1396.41,0.0001863,2]
[364214728,1749042645968,-2933.99,0.0001863,2]
[364214730,1749042645979,-191.55623274,0.0001863,2]
[364214732,1749042645992,-4792.12,0.0001863,2]
[364214734,1749042646006,-240.39441648,0.0001863,2]
[364214736,1749042646018,-440.0,0.0001863,2]
[364214752,1749042646156,-1345.56,0.0001863,2]
[364214754,1749042646167,-440.0,0.0001863,2]
[364214756,1749042646176,-151.0,0.000188,2]
[364214758,1749042646186,-4561.37926191,0.00018831,2]
[364214760,1749042646195,-440.0,0.00018904,2]
[364214762,1749042646205,-627.42,0.00018904,2]
[364214764,1749042646214,-440.0,0.00018904,2]
[364214766,1749042646224,-440.0,0.00018904,2]
[364214768,1749042646233,-477.39,0.00018904,2]
[364214770,1749042646243,-981.07,0.00018904,2]
[364214772,1749042646252,-2889.7,0.00018904,2]
[364214774,1749042646262,-2919.59,0.00018904,2]
[364214776,1749042646271,-876.89,0.00018904,2]
[364214778,1749042646280,-1743.65,0.00018904,2]
[364214780,1749042646290,-3684.79,0.00018904,2]
[364214782,1749042646299,-440.0,0.00018904,2]
[364214783,1749042646309,-3714.63,0.00018904,2]
[364214785,1749042646318,-2209.5,0.00018904,2]
[364214787,1749042646328,-742.49,0.00018904,2]
[364214789,1749042646337,-1259.57,0.00018904,2]
[364214791,1749042646347,-933.22,0.00018904,2]
[364214794,1749042646357,-6296.12,0.00018904,2]
[364214796,1749042646366,-440.0,0.00018904,2]
[364214797,1749042646375,-519.9,0.00018904,2]
[364214800,1749042646385,-926.98,0.00018904,2]
[364214802,1749042646395,-1503.46,0.00018904,2]
[364214804,1749042646404,-843.76,0.00018904,2]
[364214806,1749042646415,-440.0,0.00018904,2]
[364214808,1749042646424,-1022.64,0.00018904,2]
[364214810,1749042646433,-956.94,0.00018904,2]
[364214812,1749042646447,-1396.41,0.00018904,2]
[364214814,1749042646457,-2933.99,0.00018904,2]
[364214816,1749042646467,-4792.12,0.00018904,2]
[364214818,1749042646477,-495.43523246,0.00018904,2]
[364214820,1749042646486,-1345.56,0.00018904,2]
[364214822,1749042646496,-440.0,0.00018904,2]
[364214824,1749042646507,-164.31465425,0.00018932,2]
[364214826,1749042646518,-160.39306536,0.00018932,2]
[364214828,1749042646529,-151.0,0.00019,2]
[364214830,1749042646539,-2000.0,0.00019067,2]
[364214832,1749042646548,-160.0,0.00019095,2]
[364214834,1749042646558,-423.69433488,0.00019095,2]
[364214836,1749042646567,-229.45591648,0.00019096,2]
[364214838,1749042646577,-160.0,0.00019096,2]
[364214840,1749042646587,-160.0,0.00019096,2]
[364214842,1749042646596,-160.0,0.00019096,2]
[364214844,1749042646606,-842.5625,0.00019096,2]
[364214846,1749042646615,-160.0,0.00019096,2]
[364214848,1749042646625,-12672.94222187,0.00019096,2]
[364214850,1749042646634,-314.98208564,0.00019096,2]
[364214852,1749042646644,-151.0,0.000191,2]
[364214854,1749042646654,-4561.37926191,0.00019107,2]
[364214856,1749042646664,-440.0,0.00019178,2]
[364214858,1749042646673,-627.42,0.00019178,2]
[364214860,1749042646683,-440.0,0.00019178,2]
[364214862,1749042646693,-440.0,0.00019178,2]
[364214864,1749042646703,-477.39,0.00019178,2]
[364214866,1749042646713,-981.07,0.00019178,2]
[364214869,1749042646723,-2889.7,0.00019178,2]
[364214871,1749042646732,-2919.59,0.00019178,2]
[364214873,1749042646742,-876.89,0.00019178,2]
[364214875,1749042646751,-1743.65,0.00019178,2]
[364214877,1749042646762,-3684.79,0.00019178,2]
[364214879,1749042646772,-440.0,0.00019178,2]
[364214881,1749042646781,-3714.63,0.00019178,2]
[364214883,1749042646791,-2209.5,0.00019178,2]
[364214885,1749042646801,-742.49,0.00019178,2]
[364214887,1749042646810,-1259.57,0.00019178,2]
[364214889,1749042646820,-933.22,0.00019178,2]
[364214891,1749042646829,-6296.12,0.00019178,2]
[364214893,1749042646839,-440.0,0.00019178,2]
[364214895,1749042646849,-519.9,0.00019178,2]
[364214897,1749042646860,-926.98,0.00019178,2]
[364214899,1749042646869,-1503.46,0.00019178,2]
[364214901,1749042646879,-843.76,0.00019178,2]
[364214903,1749042646889,-440.0,0.00019178,2]
[364214905,1749042646902,-1022.64,0.00019178,2]
[364214907,1749042646911,-956.94,0.00019178,2]
[364214909,1749042646921,-1396.41,0.00019178,2]
[364214911,1749042646930,-2933.99,0.00019178,2]
[364214913,1749042646941,-4792.12,0.00019178,2]
[364214915,1749042646951,-1345.56,0.00019178,2]
[364214917,1749042646961,-440.0,0.00019178,2]
[364214919,1749042646971,-205.744126,0.00019178,2]
[364214921,1749042646980,-35287.27621135,0.00019178,2]
[364214935,1749042647111,-786.06769831,0.00019178,2]
[364214937,1749042647123,-21953.18316024,0.00019178,2]
[364214939,1749042647132,-740.99975423,0.00019183,2]
[364214941,1749042647142,-500.0,0.00019328,2]
[364214943,1749042647151,-500.0,0.00019328,2]
[364214945,1749042647161,-500.0,0.00019328,2]
[364214947,1749042647171,-500.0,0.00019328,2]
[364214949,1749042647180,-500.0,0.00019328,2]
[364214951,1749042647190,-500.0,0.00019328,2]
[364214953,1749042647200,-500.0,0.00019328,2]
[364214955,1749042647210,-500.0,0.00019328,2]
[364214957,1749042647220,-500.0,0.00019328,2]
[364214959,1749042647230,-500.0,0.00019328,2]
[364214961,1749042647241,-500.0,0.00019328,2]
[364214963,1749042647250,-500.0,0.00019328,2]
[364214965,1749042647262,-500.0,0.00019328,2]
[364214967,1749042647273,-353.34371948,0.00019328,2]
[364214969,1749042647282,-500.0,0.00019328,2]
[364214971,1749042647292,-500.0,0.00019328,2]
[364214973,1749042647301,-500.0,0.00019328,2]
[364214975,1749042647311,-100000.0,0.00019329,2]
[364214977,1749042647321,-4561.37926191,0.00019383,2]
[364214979,1749042647330,-151.0,0.000194,2]
[364214981,1749042647339,-440.0,0.00019452,2]
[364214983,1749042647349,-627.42,0.00019452,2]
[364214985,1749042647358,-440.0,0.00019452,2]
[364214987,1749042647368,-566.0917678,0.00019452,2]
[364214989,1749042647377,-477.39,0.00019452,2]
[364214991,1749042647387,-981.07,0.00019452,2]
[364214993,1749042647397,-2889.7,0.00019452,2]
[364214995,1749042647407,-2919.59,0.00019452,2]
[364214996,1749042647416,-876.89,0.00019452,2]
[364214997,1749042647425,-1743.65,0.00019452,2]
[364214998,1749042647434,-3684.79,0.00019452,2]
[364214999,1749042647444,-440.0,0.00019452,2]
[364215000,1749042647453,-3714.63,0.00019452,2]
[364215001,1749042647463,-2209.5,0.00019452,2]
[364215002,1749042647472,-742.49,0.00019452,2]
[364215003,1749042647481,-1259.57,0.00019452,2]
[364215004,1749042647490,-933.22,0.00019452,2]
[364215005,1749042647499,-6296.12,0.00019452,2]
[364215006,1749042647509,-440.0,0.00019452,2]
[364215007,1749042647518,-519.9,0.00019452,2]
[364215008,1749042647527,-926.98,0.00019452,2]
[364215009,1749042647536,-1503.46,0.00019452,2]
[364215010,1749042647545,-843.76,0.00019452,2]
[364215011,1749042647554,-440.0,0.00019452,2]
[364215012,1749042647564,-1022.64,0.00019452,2]
[364215013,1749042647573,-956.94,0.00019452,2]
[364215014,1749042647582,-1396.41,0.00019452,2]
[364215015,1749042647591,-2933.99,0.00019452,2]
[364215016,1749042647600,-4792.12,0.00019452,2]
[364215017,1749042647610,-1345.56,0.00019452,2]
[364215018,1749042647619,-440.0,0.00019452,2]
[364215019,1749042647628,-151.0,0.000195,2]
[364215020,1749042647637,-500.0,0.00019533,2]
[364215021,1749042647646,-2500.0,0.00019615,2]
[364215022,1749042647655,-587.0,0.00019631,2]
[364215023,1749042647664,-587.0,0.00019631,2]
[364215024,1749042647673,-4561.37926191,0.00019659,2]
[364215025,1749042647683,-152.89886442,0.00019666,2]
[364215026,1749042647692,-250.0,0.00019726,2]
[364215027,1749042647701,-627.42,0.00019726,2]
[364215028,1749042647710,-440.0,0.00019726,2]
[364215029,1749042647719,-477.39,0.00019726,2]
[364215030,1749042647729,-981.07,0.00019726,2]
[364215031,1749042647738,-2889.7,0.00019726,2]
[364215032,1749042647747,-2919.59,0.00019726,2]
[364215033,1749042647756,-876.89,0.00019726,2]
[364215034,1749042647766,-1743.65,0.00019726,2]
[364215035,1749042647776,-3684.79,0.00019726,2]
[364215036,1749042647787,-440.0,0.00019726,2]
[364215038,1749042647797,-3714.63,0.00019726,2]
[364215040,1749042647807,-2209.5,0.00019726,2]
[364215042,1749042647816,-742.49,0.00019726,2]
[364215044,1749042647825,-1259.57,0.00019726,2]
[364215046,1749042647835,-933.22,0.00019726,2]
[364215048,1749042647844,-6296.12,0.00019726,2]
[364215050,1749042647854,-440.0,0.00019726,2]
[364215052,1749042647864,-519.9,0.00019726,2]
[364215053,1749042647874,-926.98,0.00019726,2]
[364215055,1749042647883,-1503.46,0.00019726,2]
[364215058,1749042647893,-843.76,0.00019726,2]
[364215059,1749042647903,-210.0,0.00019726,2]
[364215061,1749042647912,-1022.64,0.00019726,2]
[364215063,1749042647922,-956.94,0.00019726,2]
[364215065,1749042647931,-1396.41,0.00019726,2]
[364215067,1749042647941,-2933.99,0.00019726,2]
[364215069,1749042647950,-4792.12,0.00019726,2]
[364215071,1749042647960,-1345.56,0.00019726,2]
[364215073,1749042647970,-440.0,0.00019726,2]
[364215075,1749042647979,-208.0,0.00019726,3]
[364215077,1749042647990,-184.947,0.00019808,2]
[364215079,1749042648001,-500.0,0.00019818,2]
[364215081,1749042648011,-500.0,0.00019818,2]
[364215083,1749042648021,-1680.0,0.00019828,2]
[364215085,1749042648030,-4561.37926191,0.00019934,2]
[364215087,1749042648041,-3000.0,0.0002,2]
[364215089,1749042648051,-25200.0,0.0002,2]
[364215091,1749042648061,-151.0,0.0002,2]
[364215093,1749042648070,-627.42,0.0002,2]
[364215095,1749042648081,-440.0,0.0002,2]
[364215097,1749042648091,-477.39,0.0002,2]
[364215099,1749042648101,-981.07,0.0002,2]
[364215101,1749042648111,-2889.7,0.0002,2]
[364215103,1749042648121,-2919.59,0.0002,2]
[364215105,1749042648130,-876.89,0.0002,2]
[364215107,1749042648139,-1743.65,0.0002,2]
[364215109,1749042648149,-3684.79,0.0002,2]
[364215111,1749042648159,-440.0,0.0002,2]
[364215113,1749042648168,-3714.63,0.0002,2]
[364215115,1749042648179,-2209.5,0.0002,2]
[364215117,1749042648188,-742.49,0.0002,2]
[364215119,1749042648197,-1259.57,0.0002,2]
[364215121,1749042648206,-933.22,0.0002,2]
[364215123,1749042648216,-6296.12,0.0002,2]
[364215125,1749042648228,-440.0,0.0002,2]
[364215127,1749042648238,-519.9,0.0002,2]
[364215129,1749042648247,-926.98,0.0002,2]
[364215131,1749042648258,-1503.46,0.0002,2]
[364215133,1749042648268,-843.76,0.0002,2]
[364215135,1749042648278,-1022.64,0.0002,2]
[364215137,1749042648287,-956.94,0.0002,2]
[364215139,1749042648298,-1396.41,0.0002,2]
[364215141,1749042648307,-2933.99,0.0002,2]
[364215143,1749042648317,-300.39179917,0.0002,2]
[364215145,1749042648327,-4000.0,0.0002,4]
[364215147,1749042648336,-4792.12,0.0002,2]
[364215149,1749042648346,-1345.56,0.0002,2]
[364215151,1749042648356,-3000.0,0.0002001,2]
[364215153,1749042648366,-3000.0,0.0002002,2]
[364215155,1749042648376,-151.0,0.0002002,2]
[364215157,1749042648386,-3000.0,0.0002003,2]
[364215159,1749042648396,-3000.0,0.0002004,2]
[364215161,1749042648406,-3000.0,0.0002005,2]
[364215173,1749042648520,-3000.0,0.0002006,2]
[364215175,1749042648531,-1500.0,0.00020068,2]
[364215177,1749042648542,-3000.0,0.0002007,2]
[364215179,1749042648552,-3000.0,0.0002008,2]
[364215181,1749042648562,-471.23588442,0.00020081,2]
[364215183,1749042648572,-3000.0,0.0002009,2]
[364215185,1749042648581,-3000.0,0.000201,2]
[364215187,1749042648591,-3000.0,0.0002011,2]
[364215189,1749042648601,-3000.0,0.0002012,2]
[364215191,1749042648612,-3000.0,0.0002013,2]
[364215193,1749042648622,-3000.0,0.0002014,2]
[364215195,1749042648632,-3000.0,0.0002015,2]
[364215197,1749042648642,-3000.0,0.0002016,2]
[364215199,1749042648651,-2048.39645406,0.00020163,2]
[364215201,1749042648661,-3000.0,0.0002017,2]
[364215203,1749042648671,-3000.0,0.0002018,2]
[364215205,1749042648682,-3000.0,0.0002019,2]
[364215208,1749042648692,-3000.0,0.000202,2]
[364215210,1749042648701,-3000.0,0.0002021,2]
[364215212,1749042648711,-4561.37926191,0.0002021,2]
[364215213,1749042648721,-3000.0,0.0002022,2]
[364215215,1749042648731,-3000.0,0.0002023,2]
[364215217,1749042648740,-3000.0,0.0002024,2]